[Event "European Amateur-ch U2000 2019"]
[Site "Rhodes"]
[Date "2019.04.08"]
[Round "3.1"]
[White "Ruzic, Pia Marie"]
[Black "Boesch, Heinz"]
[Result "1-0"]
[ECO "A29"]
[WhiteElo "1800"]
[BlackElo "1929"]
[Annotator "NA"]
[PlyCount "81"]
[EventDate "2019.04.06"]
[EventType "swiss"]
[EventCountry "GRE"]
[SourceTitle "playchess.com"]
[Source "ChessBase"]
[SourceQuality "1"]
[TimeControl "40/5400+30:1800+30"]

1. Nf3 {[%emt 0:00:00]} Nc6 {[%emt 0:00:18]} 2. g3 {[%emt 0:01:49]} e5 {[%emt 0:00:38]} 3. d3 {[%emt 0:00:06]} Nf6 {[%emt 0:00:25]} 4. Bg2 {[%emt 0:01:10]} Bc5 {[%emt 0:02:38]} 5. O-O {[%emt 0:00:58]} h6 {[%emt 0:00:42]} 6. c4 {[%emt 0:02:33]} d6 {[%emt 0:01:22]} 7. Nc3 {[%emt 0:00:23]} O-O {[%emt 0:00:33]} 8. a3 {[%emt 0:03:30]} a5 {[%emt 0:00:31]} 9. Rb1 {[%emt 0:01:17]} Re8 {[%emt 0:02:20]} 10. Nd2 {[%emt 0:05:39]} Bg4 {[%emt 0:07:17]} 11. Na4 $11 {[%emt 0:12:12]} Ba7 {[%emt 0:06:33]} 12. b4 {[%emt 0:00:32]} axb4 {[%emt 0:01:20]} 13. axb4 {[%emt 0:00:05]} Qd7 {[%emt 0:05:00]} 14. b5 {[%emt 0:00:42]} Nd4 {[%emt 0:00:30]} 15. Nf3 {[%emt 0:00:47]} Bh3 {[%emt 0:09:17]} 16. b6 {[%emt 0:08:20]} Bxg2 {[%emt 0:02:17]} 17. Kxg2 {[%emt 0:00:17]} Nxf3 {[%emt 0:02:37]} 18. exf3 {[%emt 0:00:15]} Bb8 {[%emt 0:06:07]} 19. bxc7 {[%emt 0:00:44]} Bxc7 {[%emt 0:21:55]} 20. Rxb7 {[%emt 0:05:58]} Qc6 {[%emt 0:01:08]} 21. Qb3 {[%emt 0:00:31]} Reb8 {[%emt 0:02:05]} 22. Rxb8+ {[%emt 0:00:57]} Rxb8 {[%emt 0:02:21]} 23. Qd1 {[%emt 0:00:51]} d5 {[%emt 0:04:09]} 24. Nb2 {[%emt 0:04:45]} dxc4 {[%emt 0:02:36]} 25. dxc4 {[%emt 0:01:02]} e4 {[%emt 0:04:03]} 26. Qe2 {[%emt 0:07:02]} Be5 {[%emt 0:05:16]} 27. fxe4 {[%emt 0:02:57]} Nxe4 {[%emt 0:02:46]} 28. f3 {[%emt 0:00:11]} Bxb2 {[%emt 0:01:31]} 29. Bxb2 {[%emt 0:02:27]} Nf6 {[%emt 0:01:51]} 30. Rc1 {[%emt 0:01:18]} Re8 {[%emt 0:01:07]} 31. Qd3 {[%emt 0:03:14]} Qe6 {[%emt 0:02:04]} 32. Rc2 {[%emt 0:00:24]} Nd7 {[%emt 0:00:39]} 33. Qc3 {[%emt 0:01:54]} f6 {[%emt 0:00:07]} 34. c5 {[%emt 0:00:40]} Qc6 {[%emt 0:00:01]} 35. Kf2 {[%emt 0:06:04]} Re5 {[%emt 0:00:26]} 36. Qc4+ {[%emt 0:01:20]} Kh8 {[%emt 0:00:22]} 37. Bxe5 {[%emt 0:00:16]} Nxe5 {[%emt 0:00:26]} 38. Qe4 {[%emt 0:03:00]} Qb5 {[%emt 0:00:20]} 39. c6 {[%emt 0:01:30]} Nd3+ {[%emt 0:00:05]} 40. Kg2 {[%emt 0:00:00]} Qb3 {[%emt 0:00:00]} 41. Re2 {[%emt 0:01:32]} 1-0

[Event "European Amateur-ch U2000 2019"]
[Site "Rhodes"]
[Date "2019.04.08"]
[Round "3.2"]
[White "Jamba, Alexandru"]
[Black "Krzysztynska, Anna"]
[Result "1-0"]
[ECO "E90"]
[WhiteElo "1852"]
[BlackElo "1844"]
[Annotator "NA"]
[PlyCount "93"]
[EventDate "2019.04.06"]
[EventType "swiss"]
[EventCountry "GRE"]
[SourceTitle "playchess.com"]
[Source "ChessBase"]
[SourceQuality "1"]
[TimeControl "40/5400+30:1800+30"]

1. c4 {[%emt 0:00:00]} Nf6 {[%emt 0:00:00]} 2. Nc3 {[%emt 0:00:00]} g6 {[%emt 0:00:00]} 3. d4 {[%emt 0:00:00]} Bg7 {[%emt 0:00:07]} 4. e4 {[%emt 0:00:49]} d6 {[%emt 0:00:08]} 5. h3 {[%emt 0:01:05]} O-O {[%emt 0:00:26]} 6. Nf3 {[%emt 0:00:17]} Nbd7 {[%emt 0:01:22]} 7. Bd3 {[%emt 0:03:38]} e5 {[%emt 0:01:02]} 8. d5 {[%emt 0:00:16]} Nc5 {[%emt 0:00:36]} 9. Bc2 {[%emt 0:00:20]} a5 {[%emt 0:00:17]} 10. Be3 {[%emt 0:01:10]} Nh5 {[%emt 0:09:34]} 11. O-O {[%emt 0:08:06]} Nf4 {[%emt 0:06:06]} 12. Bxf4 {[%emt 0:11:16]} ({Better is} 12. a3 $14) 12... exf4 $11 {[%emt 0:00:07]} 13. Qd2 {[%emt 0:03:56]} f5 {[%emt 0:02:54]} 14. Rae1 {[%emt 0:09:36]} Bd7 {[%emt 0:08:57]} 15. e5 {[%emt 0:06:43]} dxe5 {[%emt 0:01:36]} 16. Nxe5 {[%emt 0:00:10]} Bxe5 {[%emt 0:00:59]} 17. Rxe5 {[%emt 0:00:09]} f3 {[%emt 0:02:22]} 18. d6 {[%emt 0:09:20]} fxg2 {[%emt 0:03:10]} 19. Rd1 {[%emt 0:02:36]} Ne6 {[%emt 0:04:41]} 20. dxc7 {[%emt 0:00:22]} Qxc7 {[%emt 0:00:09]} 21. Qd5 {[%emt 0:07:31]} Rfe8 {[%emt 0:11:12]} 22. Nb5 {[%emt 0:09:31]} Qb8 {[%emt 0:05:55]} 23. Nd6 {[%emt 0:07:53]} Bc6 {[%emt 0:03:46]} 24. Rxe6 {[%emt 0:00:11]} Bxd5 {[%emt 0:05:21]} 25. Rxe8+ {[%emt 0:00:07]} Qxe8 {[%emt 0:00:05]} 26. Nxe8 {[%emt 0:00:05]} Bf3 {[%emt 0:01:22]} 27. Re1 {[%emt 0:00:34]} Rd8 {[%emt 0:05:40]} 28. Nf6+ {[%emt 0:00:09]} Kg7 {[%emt 0:01:15]} 29. Nd5 {[%emt 0:00:06]} Rc8 {[%emt 0:01:11]} 30. Re7+ {[%emt 0:01:30]} Kf8 {[%emt 0:01:28]} 31. Rc7 {[%emt 0:04:37]} Re8 {[%emt 0:01:12]} 32. Ne3 {[%emt 0:00:18]} f4 {[%emt 0:00:25]} 33. Nxg2 {[%emt 0:00:11]} g5 {[%emt 0:02:23]} 34. Rxh7 {[%emt 0:00:40]} Re5 {[%emt 0:00:33]} 35. Rd7 {[%emt 0:01:12]} Rc5 {[%emt 0:06:49]} 36. Rd4 {[%emt 0:01:15]} b5 {[%emt 0:01:01]} 37. Nxf4 {[%emt 0:00:16]} Rxc4 {[%emt 0:03:06]} 38. Rxc4 {[%emt 0:00:08]} bxc4 {[%emt 0:00:03]} 39. Ne6+ {[%emt 0:00:08]} Ke7 {[%emt 0:01:10]} 40. Nxg5 {[%emt 0:00:00]} Bd5 {[%emt 0:00:00]} 41. a3 {[%emt 0:00:55]} Kf6 {[%emt 0:01:12]} 42. f4 {[%emt 0:00:19]} Bc6 {[%emt 0:00:50]} 43. Kf2 {[%emt 0:00:10]} Bd5 {[%emt 0:01:02]} 44. h4 {[%emt 0:00:12]} Kg7 {[%emt 0:00:20]} 45. Ke3 {[%emt 0:00:04]} Kh6 {[%emt 0:00:12]} 46. Kd4 {[%emt 0:00:08]} Bg8 {[%emt 0:00:28]} 47. Bh7 {[%emt 0:00:22]} 1-0

[Event "European Amateur-ch U2000 2019"]
[Site "Rhodes"]
[Date "2019.04.08"]
[Round "3.3"]
[White "Frontzos, Ioannis"]
[Black "Zielinski, Olgierd"]
[Result "1/2-1/2"]
[ECO "B22"]
[WhiteElo "1504"]
[BlackElo "1850"]
[Annotator "NA"]
[PlyCount "66"]
[EventDate "2019.04.06"]
[EventType "swiss"]
[EventCountry "GRE"]
[SourceTitle "playchess.com"]
[Source "ChessBase"]
[SourceQuality "1"]
[TimeControl "40/5400+30:1800+30"]

1. e4 {[%emt 0:00:00]} c5 {[%emt 0:00:00]} 2. Nf3 {[%emt 0:00:00]} e6 {[%emt 0:01:10]} 3. c3 {[%emt 0:00:08]} d5 {[%emt 0:00:24]} 4. exd5 {[%emt 0:00:23]} Qxd5 {[%emt 0:00:09]} 5. d4 {[%emt 0:00:46]} Nf6 {[%emt 0:02:56]} 6. Be2 {[%emt 0:09:49]} Be7 {[%emt 0:01:19]} 7. O-O {[%emt 0:04:36]} cxd4 {[%emt 0:00:29]} 8. Nxd4 {[%emt 0:06:32]} a6 {[%emt 0:00:14]} 9. Bf3 {[%emt 0:03:13]} Qd7 {[%emt 0:00:12]} (9... Qe5 $11) 10. Re1 {[%emt 0:06:32]} O-O {[%emt 0:00:41]} 11. Bg5 {[%emt 0:04:08]} h6 {[%emt 0:00:27]} 12. Bxf6 {[%emt 0:00:57]} ({White should play} 12. Bf4 $14) 12... Bxf6 {[%emt 0:00:09]} 13. Nb3 {[%emt 0:01:37]} Qc7 {[%emt 0:00:46]} 14. N1d2 {[%emt 0:02:21]} Rd8 $11 {[%emt 0:01:09]} 15. Qe2 {[%emt 0:00:59]} Nc6 {[%emt 0:06:14]} 16. Rad1 {[%emt 0:05:11]} Ne5 {[%emt 0:02:06]} 17. Be4 {[%emt 0:04:17]} Bd7 {[%emt 0:09:39]} 18. Nf3 {[%emt 0:03:17]} Bb5 {[%emt 0:02:35]} 19. Qc2 {[%emt 0:05:51]} Nxf3+ {[%emt 0:05:19]} 20. Bxf3 {[%emt 0:00:31]} Rac8 {[%emt 0:01:59]} 21. Rxd8+ {[%emt 0:05:18]} Rxd8 {[%emt 0:00:14]} 22. Rd1 {[%emt 0:01:22]} b6 {[%emt 0:01:51]} 23. Rxd8+ {[%emt 0:03:06]} Qxd8 {[%emt 0:02:52]} 24. Be2 {[%emt 0:05:08]} Bxe2 {[%emt 0:22:53]} 25. Qxe2 {[%emt 0:00:19]} a5 {[%emt 0:04:05]} 26. g3 {[%emt 0:01:24]} Qd5 {[%emt 0:01:03]} 27. Qc2 {[%emt 0:09:37]} a4 {[%emt 0:00:59]} 28. Nc1 {[%emt 0:01:23]} a3 {[%emt 0:05:18]} 29. b3 {[%emt 0:03:37]} Qe5 {[%emt 0:02:40]} 30. Ne2 {[%emt 0:01:04]} Be7 {[%emt 0:00:48]} 31. Qd3 {[%emt 0:02:13]} b5 {[%emt 0:09:57]} 32. b4 {[%emt 0:01:43]} Bf6 {[%emt 0:01:43]} 33. f4 {[%emt 0:02:48]} Qb8 {[%emt 0:04:37]} 1/2-1/2

[Event "European Amateur-ch U2000 2019"]
[Site "Rhodes"]
[Date "2019.04.08"]
[Round "3.4"]
[White "Demirbas, Emre"]
[Black "Zakharov, Denis"]
[Result "1-0"]
[ECO "B09"]
[WhiteElo "1960"]
[BlackElo "1889"]
[Annotator "NA"]
[PlyCount "65"]
[EventDate "2019.04.06"]
[EventType "swiss"]
[EventCountry "GRE"]
[SourceTitle "playchess.com"]
[Source "ChessBase"]
[SourceQuality "1"]
[TimeControl "40/5400+30:1800+30"]

1. e4 {[%emt 0:00:00]} d6 {[%emt 0:00:00]} 2. d4 {[%emt 0:00:00]} Nf6 {[%emt 0:00:33]} 3. Nc3 {[%emt 0:00:00]} g6 {[%emt 0:02:10]} 4. f4 {[%emt 0:00:00]} Bg7 {[%emt 0:01:18]} 5. Nf3 {[%emt 0:00:00]} O-O {[%emt 0:00:28]} 6. e5 {[%emt 0:02:57]} Nfd7 {[%emt 0:00:12]} 7. Be3 {[%emt 0:02:01]} c5 {[%emt 0:00:48]} 8. exd6 {[%emt 0:04:08]} exd6 {[%emt 0:00:55]} 9. Be2 {[%emt 0:01:44]} Re8 {[%emt 0:00:16]} 10. Bf2 {[%emt 0:00:33]} Qb6 {[%emt 0:05:35]} (10... Nf6 $11) 11. O-O {[%emt 0:04:15]} Nf6 $11 {[%emt 0:00:49]} 12. dxc5 {[%emt 0:04:04]} Qxb2 {[%emt 0:01:44]} 13. Nb5 {[%emt 0:06:14]} Na6 {[%emt 0:09:28]} 14. Nxd6 {[%emt 0:07:33]} Rd8 {[%emt 0:01:17]} 15. Bd4 {[%emt 0:01:25]} Qa3 {[%emt 0:02:17]} 16. Ng5 {[%emt 0:05:02]} Ng4 {[%emt 0:17:30]} 17. Ngxf7 {[%emt 0:04:10]} Ne3 {[%emt 0:00:43]} 18. Bxe3 {[%emt 0:04:34]} Qxe3+ {[%emt 0:00:09]} 19. Kh1 {[%emt 0:00:12]} Rf8 {[%emt 0:01:36]} 20. Bc4 {[%emt 0:04:40]} Qxc5 {[%emt 0:06:24]} 21. Nh6+ {[%emt 0:01:58]} Kh8 {[%emt 0:00:01]} 22. Ndf7+ {[%emt 0:00:07]} Rxf7 {[%emt 0:00:32]} 23. Nxf7+ {[%emt 0:00:05]} Kg8 {[%emt 0:00:11]} 24. Qd8+ {[%emt 0:01:12]} Bf8 {[%emt 0:01:15]} 25. Nd6+ {[%emt 0:01:32]} Kg7 {[%emt 0:00:24]} 26. Ne8+ {[%emt 0:00:01]} Kh6 {[%emt 0:00:35]} 27. Qg5+ {[%emt 0:00:18]} Qxg5 {[%emt 0:00:15]} 28. fxg5+ {[%emt 0:00:01]} Kxg5 {[%emt 0:00:04]} 29. Rxf8 {[%emt 0:00:05]} Bd7 {[%emt 0:00:24]} 30. Bxa6 {[%emt 0:00:11]} bxa6 {[%emt 0:00:46]} 31. Re1 {[%emt 0:00:04]} h5 {[%emt 0:00:53]} 32. Re7 {[%emt 0:00:08]} Bc6 {[%emt 0:00:08]} 33. Re5+ {[%emt 0:01:38]} 1-0

[Event "European Amateur-ch U2000 2019"]
[Site "Rhodes"]
[Date "2019.04.08"]
[Round "3.5"]
[White "Wlogalski, Olivier"]
[Black "Bozinovic, Boban"]
[Result "0-1"]
[ECO "A16"]
[WhiteElo "1853"]
[BlackElo "1950"]
[Annotator "NA"]
[PlyCount "72"]
[EventDate "2019.04.06"]
[EventType "swiss"]
[EventCountry "GRE"]
[SourceTitle "playchess.com"]
[Source "ChessBase"]
[SourceQuality "1"]
[TimeControl "40/5400+30:1800+30"]

1. c4 {[%emt 0:04:29]} Nf6 {[%emt 0:00:37]} 2. Nc3 {[%emt 0:00:12]} g6 {[%emt 0:00:28]} 3. g3 {[%emt 0:00:09]} Bg7 {[%emt 0:00:05]} 4. Bg2 {[%emt 0:00:04]} O-O {[%emt 0:00:16]} 5. Nf3 {[%emt 0:00:06]} c6 {[%emt 0:01:39]} 6. O-O {[%emt 0:00:40]} d6 {[%emt 0:00:06]} 7. b3 {[%emt 0:00:52]} Qa5 {[%emt 0:04:52]} 8. Bb2 {[%emt 0:02:50]} Qh5 {[%emt 0:04:34]} 9. Qc2 {[%emt 0:02:17]} Bg4 {[%emt 0:06:55]} 10. Rfe1 {[%emt 0:01:14]} Nbd7 {[%emt 0:03:42]} 11. Rab1 $11 {[%emt 0:05:54]} Rfd8 {[%emt 0:07:57]} 12. b4 {[%emt 0:01:12]} a6 {[%emt 0:07:44]} 13. a4 {[%emt 0:00:39]} Rac8 {[%emt 0:00:48]} 14. Qb3 {[%emt 0:02:10]} e5 {[%emt 0:06:08]} 15. d3 {[%emt 0:00:30]} d5 {[%emt 0:12:52]} 16. cxd5 {[%emt 0:07:38]} cxd5 {[%emt 0:00:09]} 17. Nd2 {[%emt 0:08:42]} d4 {[%emt 0:17:15]} 18. Nce4 {[%emt 0:02:58]} Be6 {[%emt 0:04:10]} 19. Qd1 {[%emt 0:04:29]} Nd5 {[%emt 0:02:34]} 20. b5 {[%emt 0:02:02]} axb5 {[%emt 0:01:21]} 21. axb5 {[%emt 0:00:15]} Nc3 {[%emt 0:09:24]} 22. Bxc3 {[%emt 0:02:00]} dxc3 {[%emt 0:00:02]} 23. Nc4 {[%emt 0:00:36]} Bxc4 {[%emt 0:02:38]} 24. dxc4 {[%emt 0:00:20]} Nb6 {[%emt 0:00:46]} 25. Qb3 {[%emt 0:04:57]} Nxc4 {[%emt 0:01:11]} 26. Rbc1 {[%emt 0:02:42]} Nd2 {[%emt 0:00:38]} 27. Qc2 {[%emt 0:01:30]} Qf5 {[%emt 0:01:13]} 28. Red1 {[%emt 0:03:28]} Qd7 {[%emt 0:02:32]} 29. Nxc3 {[%emt 0:05:06]} e4 {[%emt 0:00:06]} 30. Qb2 {[%emt 0:02:57]} Bxc3 {[%emt 0:01:08]} 31. Rxc3 {[%emt 0:00:27]} Nf3+ {[%emt 0:00:37]} 32. exf3 {[%emt 0:00:42]} Qxd1+ {[%emt 0:00:08]} 33. Bf1 {[%emt 0:00:03]} exf3 {[%emt 0:00:47]} 34. Rxc8 {[%emt 0:03:13]} Rxc8 {[%emt 0:00:02]} 35. Qe5 {[%emt 0:00:07]} h5 {[%emt 0:00:29]} 36. h4 {[%emt 0:00:09]} Rc1 {[%emt 0:00:50]} 0-1

[Event "European Amateur-ch U2000 2019"]
[Site "Rhodes"]
[Date "2019.04.08"]
[Round "3.6"]
[White "Flis, Pawel"]
[Black "Mohnblatt, Daniel"]
[Result "0-1"]
[WhiteElo "1903"]
[BlackElo "1708"]
[Annotator "NA"]
[PlyCount "20"]
[EventDate "2019.04.06"]
[EventType "swiss"]
[EventCountry "GRE"]
[SourceTitle "playchess.com"]
[Source "ChessBase"]
[SourceQuality "1"]
[TimeControl "40/5400+30:1800+30"]

1. e4 {[%emt 0:00:00]} c5 {[%emt 0:00:00]} 2. Nc3 {[%emt 0:00:00]} Nc6 {[%emt 0:00:30]} 3. Bb5 {[%emt 0:00:00]} Nd4 {[%emt 0:00:46]} 4. Bc4 {[%emt 0:00:00]} e6 {[%emt 0:00:13]} 5. Nf3 {[%emt 0:00:18]} Nf6 {[%emt 0:00:55]} 6. O-O {[%emt 0:01:32]} a6 {[%emt 0:00:43]} 7. d3 {[%emt 0:01:19]} b5 {[%emt 0:00:26]} 8. Bb3 {[%emt 0:00:08]} Nxb3 {[%emt 0:00:09]} 9. axb3 {[%emt 0:00:10]} Bb7 {[%emt 0:00:13]} 10. e5 {[%emt 0:00:40]} b4 {[%emt 0:00:50]} 0-1

[Event "European Amateur-ch U2000 2019"]
[Site "Rhodes"]
[Date "2019.04.08"]
[Round "3.7"]
[White "Suliborski, Artur"]
[Black "Zanfir, Iulian"]
[Result "1-0"]
[ECO "B12"]
[WhiteElo "1926"]
[BlackElo "1699"]
[Annotator "NA"]
[PlyCount "41"]
[EventDate "2019.04.06"]
[EventType "swiss"]
[EventCountry "GRE"]
[SourceTitle "playchess.com"]
[Source "ChessBase"]
[SourceQuality "1"]
[TimeControl "40/5400+30:1800+30"]

1. e4 {[%emt 0:00:00]} c6 {[%emt 0:00:00]} 2. d4 {[%emt 0:00:00]} d5 {[%emt 0:00:00]} 3. f3 {[%emt 0:00:00]} e6 {[%emt 0:01:42]} 4. Nc3 {[%emt 0:00:40]} Nd7 {[%emt 0:00:44]} 5. Bd3 {[%emt 0:00:50]} Ne7 {[%emt 0:01:57]} 6. Be3 {[%emt 0:03:37]} Qb6 {[%emt 0:01:28]} 7. a3 {[%emt 0:03:21]} a5 {[%emt 0:04:42]} 8. Nge2 {[%emt 0:01:20]} a4 {[%emt 0:02:21]} 9. Rb1 {[%emt 0:00:48]} dxe4 {[%emt 0:02:31]} 10. fxe4 {[%emt 0:01:05]} c5 $18 {[%emt 0:02:20]} (10... e5 $14) 11. d5 {[%emt 0:20:32]} e5 {[%emt 0:10:46]} 12. O-O {[%emt 0:01:55]} Ng6 {[%emt 0:01:41]} 13. Bb5 {[%emt 0:08:31]} Bd6 {[%emt 0:04:06]} 14. Bxa4 {[%emt 0:00:10]} Qd8 {[%emt 0:04:41]} 15. Nb5 {[%emt 0:02:48]} Qe7 {[%emt 0:01:31]} 16. Ng3 {[%emt 0:01:40]} Qf8 {[%emt 0:04:07]} 17. Nf5 {[%emt 0:01:43]} Ra6 {[%emt 0:01:49]} 18. Nbxd6+ {[%emt 0:01:44]} Rxd6 {[%emt 0:00:52]} 19. Bxc5 {[%emt 0:00:19]} Rxd5 {[%emt 0:02:34]} 20. Qxd5 {[%emt 0:00:09]} Nf4 {[%emt 0:02:32]} 21. Rxf4 {[%emt 0:01:22]} 1-0

[Event "European Amateur-ch U2000 2019"]
[Site "Rhodes"]
[Date "2019.04.08"]
[Round "3.8"]
[White "Mihalache, Paul-Stelian"]
[Black "Petukhov, Igor"]
[Result "1-0"]
[ECO "D41"]
[WhiteElo "1830"]
[BlackElo "1819"]
[Annotator "NA"]
[PlyCount "83"]
[EventDate "2019.04.06"]
[EventType "swiss"]
[EventCountry "GRE"]
[SourceTitle "playchess.com"]
[Source "ChessBase"]
[SourceQuality "1"]
[TimeControl "40/5400+30:1800+30"]

1. d4 {[%emt 0:00:00]} d5 {[%emt 0:00:00]} 2. Nf3 {[%emt 0:00:00]} c5 {[%emt 0:00:00]} 3. dxc5 {[%emt 0:08:29]} e6 {[%emt 0:00:11]} 4. c4 {[%emt 0:02:25]} Bxc5 {[%emt 0:00:35]} 5. cxd5 {[%emt 0:00:44]} Nf6 {[%emt 0:02:36]} 6. Nc3 {[%emt 0:03:36]} Nxd5 {[%emt 0:04:11]} 7. Nxd5 $11 {[%emt 0:00:55]} Qxd5 {[%emt 0:03:26]} 8. Qxd5 {[%emt 0:00:35]} exd5 {[%emt 0:00:03]} 9. a3 {[%emt 0:04:34]} O-O {[%emt 0:03:55]} 10. b4 {[%emt 0:02:16]} Bb6 {[%emt 0:00:38]} 11. Bb2 {[%emt 0:00:42]} a5 {[%emt 0:00:54]} 12. b5 {[%emt 0:11:23]} a4 {[%emt 0:08:44]} 13. Bc3 {[%emt 0:07:00]} Bd7 {[%emt 0:08:42]} 14. e3 {[%emt 0:02:15]} Rc8 {[%emt 0:00:31]} 15. Rc1 {[%emt 0:05:24]} Ba5 {[%emt 0:01:49]} 16. Kd2 {[%emt 0:00:09]} Be8 {[%emt 0:05:53]} 17. Bd3 {[%emt 0:02:17]} Bxc3+ {[%emt 0:00:52]} 18. Rxc3 {[%emt 0:00:09]} Rxc3 {[%emt 0:00:07]} 19. Kxc3 {[%emt 0:00:05]} Nd7 {[%emt 0:00:35]} 20. Nd4 {[%emt 0:07:19]} Nc5 {[%emt 0:09:27]} 21. Rc1 {[%emt 0:06:05]} Ne4+ {[%emt 0:09:23]} 22. Bxe4 {[%emt 0:00:32]} Rc8+ {[%emt 0:00:24]} 23. Kb2 {[%emt 0:01:31]} Rxc1 {[%emt 0:00:05]} 24. Bxh7+ {[%emt 0:00:55]} Kxh7 {[%emt 0:00:13]} 25. Kxc1 {[%emt 0:00:05]} Kg6 {[%emt 0:00:21]} 26. Kd2 {[%emt 0:00:32]} Kf6 {[%emt 0:00:25]} 27. Kc3 {[%emt 0:00:35]} Ke5 {[%emt 0:00:37]} 28. Kb4 {[%emt 0:04:44]} f5 {[%emt 0:01:40]} 29. Kxa4 {[%emt 0:02:30]} f4 {[%emt 0:00:04]} 30. Ka5 {[%emt 0:01:21]} fxe3 {[%emt 0:00:20]} 31. fxe3 {[%emt 0:00:11]} Ke4 {[%emt 0:00:12]} 32. Kb6 {[%emt 0:02:11]} Kxe3 {[%emt 0:02:36]} 33. Kc5 {[%emt 0:05:17]} Ke4 {[%emt 0:00:17]} 34. Nb3 {[%emt 0:01:52]} Bf7 {[%emt 0:02:18]} 35. a4 {[%emt 0:01:28]} d4 {[%emt 0:01:19]} 36. Nxd4 {[%emt 0:08:04]} b6+ {[%emt 0:00:02]} 37. Kxb6 {[%emt 0:00:11]} Kxd4 {[%emt 0:00:05]} 38. Kc7 {[%emt 0:01:51]} Bd5 {[%emt 0:04:46]} 39. b6 {[%emt 0:01:14]} Bxg2 {[%emt 0:00:21]} 40. b7 {[%emt 0:00:23]} Bxb7 {[%emt 0:00:08]} 41. Kxb7 {[%emt 0:00:07]} Kc5 {[%emt 0:00:14]} 42. a5 {[%emt 0:00:13]} 1-0

[Event "European Amateur-ch U2000 2019"]
[Site "Rhodes"]
[Date "2019.04.08"]
[Round "3.9"]
[White "Mohnblatt, Nicolas"]
[Black "Nagy, Laszlo Bence"]
[Result "0-1"]
[ECO "B28"]
[WhiteElo "1685"]
[BlackElo "1978"]
[Annotator "NA"]
[PlyCount "64"]
[EventDate "2019.04.06"]
[EventType "swiss"]
[EventCountry "GRE"]
[SourceTitle "playchess.com"]
[Source "ChessBase"]
[SourceQuality "1"]
[TimeControl "40/5400+30:1800+30"]

1. e4 {[%emt 0:00:00]} c5 {[%emt 0:00:00]} 2. Nf3 {[%emt 0:00:00]} a6 {[%emt 0:00:00]} 3. d4 {[%emt 0:00:12]} cxd4 {[%emt 0:00:00]} 4. Nxd4 {[%emt 0:00:05]} Nf6 {[%emt 0:00:17]} 5. Nc3 {[%emt 0:01:00]} e5 {[%emt 0:00:24]} 6. Nb3 {[%emt 0:03:01]} Bb4 {[%emt 0:03:01]} 7. f3 {[%emt 0:01:11]} d5 {[%emt 0:04:03]} 8. exd5 {[%emt 0:04:32]} Nxd5 {[%emt 0:00:27]} 9. Bd2 {[%emt 0:00:24]} Nxc3 {[%emt 0:00:48]} 10. bxc3 {[%emt 0:00:44]} Be7 {[%emt 0:00:38]} 11. Bd3 {[%emt 0:02:24]} O-O {[%emt 0:05:52]} 12. O-O {[%emt 0:00:09]} f5 {[%emt 0:00:33]} 13. c4 {[%emt 0:06:39]} Be6 {[%emt 0:05:57]} 14. Bc3 {[%emt 0:01:02]} Nd7 $15 {[%emt 0:01:54]} 15. Re1 {[%emt 0:11:16]} Bf6 {[%emt 0:04:43]} 16. Rb1 {[%emt 0:01:22]} Qc7 {[%emt 0:00:28]} 17. Kh1 {[%emt 0:06:09]} Rfe8 {[%emt 0:04:23]} 18. Ba1 {[%emt 0:04:13]} g6 {[%emt 0:04:05]} 19. Qe2 {[%emt 0:12:03]} Bf7 {[%emt 0:04:11]} 20. Qf1 {[%emt 0:04:08]} Re7 {[%emt 0:04:06]} 21. Rbd1 {[%emt 0:06:19]} Rc8 {[%emt 0:08:40]} 22. Nd2 {[%emt 0:01:50]} Bg7 {[%emt 0:01:55]} 23. Qf2 {[%emt 0:05:02]} Ree8 {[%emt 0:14:28]} 24. Rb1 {[%emt 0:01:03]} Nc5 {[%emt 0:03:04]} 25. Nb3 {[%emt 0:00:52]} Re7 {[%emt 0:08:03]} 26. Bb2 {[%emt 0:03:04]} e4 {[%emt 0:04:36]} 27. Ba3 {[%emt 0:08:02]} exd3 {[%emt 0:05:51]} 28. Nxc5 {[%emt 0:02:50]} dxc2 {[%emt 0:03:34]} 29. Rxb7 {[%emt 0:03:55]} Rxe1+ {[%emt 0:00:26]} 30. Qxe1 {[%emt 0:00:07]} Qe5 {[%emt 0:02:29]} 31. Re7 {[%emt 0:02:56]} Qxe1+ {[%emt 0:00:33]} 32. Rxe1 {[%emt 0:00:06]} Bf8 {[%emt 0:00:17]} 0-1

[Event "European Amateur-ch U2000 2019"]
[Site "Rhodes"]
[Date "2019.04.11"]
[Round "4.1"]
[White "Kostov, Deyan Samuil"]
[Black "Ruzic, Pia Marie"]
[Result "0-1"]
[ECO "A45"]
[WhiteElo "1830"]
[BlackElo "1800"]
[Annotator "NA RC"]
[PlyCount "68"]
[EventDate "2019.04.06"]
[EventType "swiss"]
[EventCountry "GRE"]
[SourceTitle "playchess.com"]
[Source "ChessBase"]
[SourceQuality "1"]
[TimeControl "40/5400+30:1800+30"]

1. d4 {[%emt 0:00:00]} Nf6 {[%emt 0:00:00]} 2. Bg5 {[%emt 0:00:00]} g6 {[%emt 0:00:00]} 3. Bxf6 {[%emt 0:00:00]} exf6 {[%emt 0:00:00]} 4. e3 {[%emt 0:00:00]} f5 {[%emt 0:00:00]} 5. c4 {[%emt 0:00:16]} d6 {[%emt 0:00:28]} 6. Nc3 {[%emt 0:00:22]} Nd7 {[%emt 0:00:31]} 7. g3 {[%emt 0:00:50]} Nf6 {[%emt 0:02:41]} 8. Bg2 {[%emt 0:00:48]} h5 {[%emt 0:00:16]} 9. h4 {[%emt 0:02:09]} Bh6 {[%emt 0:00:18]} 10. Nh3 {[%emt 0:02:49]} O-O {[%emt 0:02:10]} 11. Qd3 {[%emt 0:04:34]} Re8 {[%emt 0:01:32]} 12. O-O-O {[%emt 0:09:08]} c6 {[%emt 0:03:48]} 13. Rde1 {[%emt 0:06:05]} Bd7 {[%emt 0:05:04]} 14. Kb1 {[%emt 0:10:07]} Rb8 {[%emt 0:01:48]} 15. Nf4 {[%emt 0:08:05]} Ne4 {[%emt 0:08:54]} 16. Nxe4 {[%emt 0:09:01]} fxe4 {[%emt 0:00:05]} 17. Qe2 {[%emt 0:02:42]} b5 {[%emt 0:03:42]} 18. Rhg1 {[%emt 0:08:07]} bxc4 {[%emt 0:02:16]} 19. Qxc4 {[%emt 0:01:20]} Qa5 {[%emt 0:07:24]} 20. Bh3 {[%emt 0:03:50]} Bxh3 {[%emt 0:15:59]} 21. Nxh3 {[%emt 0:00:06]} d5 {[%emt 0:00:08]} 22. Qc2 {[%emt 0:04:58]} Rb6 {[%emt 0:13:11]} 23. Nf4 {[%emt 0:02:40]} Reb8 {[%emt 0:01:07]} 24. Re2 {[%emt 0:00:59]} Bf8 {[%emt 0:03:46]} 25. Qd1 {[%emt 0:07:35]} Ba3 {[%emt 0:01:54]} 26. b3 {[%emt 0:00:17]} Qc3 {[%emt 0:01:39]} 27. Qc2 {[%emt 0:00:34]} Qa5 {[%emt 0:03:40]} 28. Qd1 {[%emt 0:00:21]} Bb4 {[%emt 0:00:31]} 29. g4 {[%emt 0:05:52]} Bc3 {[%emt 0:00:59]} 30. Qc2 {[%emt 0:00:26]} Rxb3+ {[%emt 0:01:19]} 31. Kc1 {[%emt 0:01:19]} Qa3+ {[%emt 0:00:12]} 32. Kd1 {[%emt 0:00:29]} Rb1+ {[%emt 0:00:07]} 33. Qxb1 {[%emt 0:00:02]} Rxb1+ {[%emt 0:00:08]} 34. Kc2 {[%emt 0:00:01]} Qb2# {[%emt 0:00:02]} 0-1